fUST/lending_fUST_20241009
["ID","MTS","AMOUNT","RATE_DAILY","PERIOD"]
[340058502,1728426653708,-150.112233,0.00025,5]
[340058503,1728426653718,-150.112233,0.00025,3]
[340058504,1728426653730,-150.112233,0.00025,2]
[340058505,1728426653740,-318.0,0.00025,2]
[340058506,1728426653750,-150.112233,0.00025,6]
[340058507,1728426653760,-150.112233,0.00025,4]
[340058508,1728426653769,-420.0,0.00025014,2]
[340058509,1728426653779,-166.666666,0.00025044,2]
[340058510,1728426653789,-500.0,0.00025073,2]
[340058511,1728426653803,-500.0,0.00025073,2]
[340058512,1728426653812,-500.0,0.00025073,2]
[340058513,1728426653821,-500.0,0.00025073,2]
[340058514,1728426653831,-500.0,0.00025073,2]
[340058515,1728426653840,-500.08647885,0.00025073,2]
[340058516,1728426653850,-239.50611507,0.00025089,2]
[340058517,1728426653860,-7743.43445179,0.00025089,2]
[340058518,1728426653870,-191309.76347259,0.0002509,2]
[340058519,1728426653880,-59907.05409075,0.0002509,2]
[340058520,1728426653890,-336.902971,0.0002509,7]
[340058521,1728426653900,-420.0,0.00025347,2]
[340058522,1728426653910,-166.666666,0.0002566,2]
[340058523,1728426653919,-318.0,0.0002589,2]
[340058524,1728426653930,-1000.0,0.00026242,2]
[340058525,1728426653940,-495.77780508,0.00026242,2]
[340058526,1728426653949,-1000.0,0.00026242,2]
[340058527,1728426653959,-1000.0,0.00026242,2]
[340058528,1728426653970,-1000.0,0.00026242,2]
[340058529,1728426653980,-1000.0,0.00026242,2]
[340058530,1728426653990,-1000.0,0.00026242,2]
[340058531,1728426654000,-1000.0,0.00026242,2]
[340058532,1728426654010,-1000.0,0.00026242,2]
[340058533,1728426654019,-1000.0,0.00026242,2]
[340058534,1728426654029,-1000.0,0.00026342,2]
[340058535,1728426654039,-1049.80656059,0.00026342,2]
[340058536,1728426654049,-1000.0,0.00026342,2]
[340058537,1728426654059,-581.21492335,0.00026442,2]
[340058538,1728426654069,-1000.0,0.00026442,2]
[340058539,1728426654078,-1000.0,0.00026442,2]
[340058540,1728426654088,-1000.0,0.00026442,2]
[340058541,1728426654098,-1000.0,0.00026442,2]
[340058542,1728426654108,-7458.94652043,0.0002649,2]
[340058543,1728426654118,-587.0,0.00027152,2]
[340058544,1728426654127,-319.0,0.00027185,2]
[340058545,1728426654137,-500.0,0.00027333,2]
[340058546,1728426654147,-500.0,0.00027473,5]
[340058547,1728426654156,-44043.05120629,0.000275,2]
[340058548,1728426654165,-500.0,0.00027625,5]
[340058549,1728426654175,-500.0,0.00027625,5]
[340058550,1728426654185,-500.0,0.00027625,5]
[340058551,1728426654194,-500.0,0.00027625,5]
[340058552,1728426654204,-500.0,0.0002774,5]
[340058553,1728426654214,-500.0,0.0002774,5]
[340058554,1728426654287,-587.0,0.00027882,2]
[340058555,1728426654303,-31763.81289618,0.0002799,2]
[340058556,1728426654313,-3375.01598762,0.00028,5]
[340058557,1728426654324,-151.0,0.00028,7]
[340058558,1728426654333,-336.902971,0.00028,7]
[340058559,1728426654343,-500.0,0.00028246,5]
[340058560,1728426654352,-1500.0,0.00028246,5]
[340058561,1728426654362,-1000.66775693,0.00028246,5]
[340058562,1728426654372,-1500.0,0.00028246,5]
[340058563,1728426654382,-1500.0,0.00028246,5]
[340058564,1728426654392,-1500.0,0.00028246,5]
[340058565,1728426654402,-1500.0,0.00028246,5]
[340058566,1728426654411,-1500.0,0.00028246,5]
[340058567,1728426654421,-1500.0,0.00028346,2]
[340058568,1728426654431,-1500.0,0.00028346,5]
[340058569,1728426654441,-534.10013876,0.00028446,5]
[340058570,1728426654453,-1500.0,0.00028446,5]
[340058571,1728426654463,-1500.0,0.00028446,5]
[340058572,1728426654476,-1000.0,0.00028703,5]
[340058573,1728426654489,-1000.0,0.00028842,5]
[340058574,1728426654499,-1000.0,0.00028995,5]
[340058575,1728426654510,-1000.0,0.00028995,5]
[340058576,1728426654519,-1000.37020995,0.00028995,5]
[340058577,1728426654530,-1000.0,0.00028995,5]
[340058578,1728426654540,-318.0,0.00028997,2]
[340058579,1728426654551,-1000.0,0.0002911,5]
[340058580,1728426654561,-1000.0,0.0002911,5]
[340058581,1728426654570,-823.0,0.00029474,2]
[340058582,1728426654580,-465.01729125,0.00029603,2]
[340058583,1728426654590,-1500.0,0.0003,2]
[340058584,1728426654600,-5000.0,0.0003041,2]
[340058585,1728426654611,-1000.0,0.00030587,5]
[340058586,1728426654621,-2000.0,0.00030587,5]
[340058587,1728426654631,-1503.0,0.00030587,5]
[340058588,1728426654641,-2000.0,0.00030587,5]
[340058589,1728426654652,-2000.0,0.00030587,5]
[340058590,1728426654663,-623.0,0.0003067,2]
[340058591,1728426654673,-2000.0,0.00030687,2]
[340058592,1728426654683,-2000.0,0.00030687,5]
[340058593,1728426654692,-1519.54174802,0.00030706,5]
[340058594,1728426654703,-1117.42511815,0.00030787,5]
[340058595,1728426654714,-501.13578449,0.00030787,5]
[340058596,1728426654726,-318.0,0.0003081,2]
[340058597,1728426654735,-307.2835926,0.00030822,2]
[340058598,1728426654745,-1500.0,0.00030846,5]
[340058599,1728426654756,-1500.0,0.00030998,5]
[340058600,1728426654768,-342.00959574,0.00030998,5]
[340058601,1728426654777,-405.84140001,0.00030998,5]
[340058602,1728426654801,-6214.67655165,0.00031,2]
[340058603,1728426654819,-3000.0,0.00031,6]
[340058604,1728426654842,-3000.0,0.0003101,6]
[340058605,1728426654864,-3000.0,0.0003102,6]
[340058606,1728426654884,-3000.0,0.0003103,6]
[340058607,1728426654903,-3000.0,0.0003104,6]
[340058608,1728426654921,-3000.0,0.0003105,6]
[340058609,1728426654937,-3000.0,0.0003106,6]
[340058610,1728426654957,-318.0,0.00031068,2]
[340058611,1728426654979,-3000.0,0.0003107,6]
[340058612,1728426654995,-3000.0,0.0003108,6]
[340058613,1728426655011,-3251.8104069,0.00031082,2]
[340058614,1728426655027,-465.00086456,0.00031083,2]
[340058615,1728426655045,-3000.0,0.0003109,6]
[340058616,1728426655060,-3000.0,0.000311,6]
[340058617,1728426655076,-3000.0,0.0003111,6]
[340058618,1728426655091,-1500.0,0.00031113,5]
[340058619,1728426655106,-1500.0,0.00031113,5]
[340058620,1728426655121,-3000.0,0.0003112,6]
[340058621,1728426655136,-3000.0,0.0003113,6]
[340058622,1728426655150,-3000.0,0.0003114,6]
[340058623,1728426655164,-151.0,0.0003134,7]
[340058624,1728426655179,-336.902971,0.0003134,7]
[340058625,1728426655194,-166.2,0.00031575,4]
[340058626,1728426655209,-153.0,0.00031781,2]
[340058627,1728426655226,-200.16382002,0.0003185,5]
[340058628,1728426655239,-1152.0,0.00031994,2]
[340058629,1728426655255,-318.0,0.00032622,2]
[340058630,1728426655270,-16501.79832527,0.00033,2]
[340058631,1728426655285,-2500.0,0.00033178,5]
[340058632,1728426655303,-2500.0,0.00033178,5]
[340058633,1728426655318,-2500.0,0.00033178,5]
[340058634,1728426655332,-2000.0,0.00033187,5]
[340058635,1728426655349,-1500.0,0.00033278,2]
[340058636,1728426655366,-237.61833822,0.00033278,5]
[340058637,1728426655382,-2000.0,0.00033339,5]
[340058638,1728426655397,-1218.0,0.00033422,2]
[340058639,1728426655411,-412.778192,0.00033425,2]
[340058640,1728426655427,-2000.0,0.00033454,5]
[340058641,1728426655443,-2000.0,0.00033454,5]
[340058642,1728426655459,-182.057859,0.00034014,2]
[340058643,1728426655474,-1613.0,0.0003473,2]
[340058644,1728426655489,-150.0,0.00035,2]
[340058645,1728426655504,-500.07699134,0.00035616,5]
[340058646,1728426655520,-2500.0,0.00035778,5]
[340058647,1728426655531,-268.4720037,0.0003589,2]
[340058648,1728426655540,-2500.0,0.0003593,5]
[340058649,1728426655658,-2000.0,0.00035973,5]
[340058650,1728426655669,-2117.96754104,0.00035973,5]
[340058651,1728426655680,-3000.0,0.00035973,5]
[340058652,1728426655690,-463.680029,0.00036,2]
[340058653,1728426655700,-1846.50395103,0.00036045,5]
[340058654,1728426655709,-2500.0,0.00036045,5]
[340058655,1728426655719,-1218.0,0.00036422,2]
[340058656,1728426655730,-307.1420733,0.00036712,2]
[340058657,1728426655740,-153.0,0.00036712,2]
[340058658,1728426655750,-153.0,0.00036712,2]
[340058659,1728426655761,-153.0,0.00036712,2]
[340058660,1728426655770,-150.0,0.000371,2]
[340058661,1728426655780,-150.01,0.000371,2]
[340058662,1728426655789,-151.0,0.000371,14]
[340058663,1728426655800,-336.902971,0.000371,14]
[340058664,1728426655810,-6221.21,0.00037161,2]
[340058665,1728426655820,-3251.8104069,0.00037469,2]
[340058666,1728426655830,-153.0,0.00037534,2]
[340058667,1728426655841,-153.0,0.00037534,2]
[340058668,1728426655852,-153.0,0.00037534,2]
[340058669,1728426655864,-153.0,0.00037534,2]
[340058670,1728426655874,-153.0,0.00037534,2]
[340058671,1728426655884,-153.0,0.00037534,2]
[340058672,1728426655893,-255.7737139,0.00037534,2]
[340058673,1728426655903,-2258.0,0.000377,2]
[340058674,1728426655912,-35000.0,0.00038,2]
[340058675,1728426655921,-300.0,0.00038571,5]
[340058676,1728426655931,-3000.0,0.00038573,5]
[340058677,1728426655940,-162.803257,0.000387,2]
[340058678,1728426655950,-1000.0,0.0003871,2]
[340058679,1728426655959,-1308.58729457,0.00038725,5]
[340058680,1728426655969,-1000.0,0.00038741,2]
[340058681,1728426655979,-1000.0,0.0003879,3]
[340058682,1728426655989,-153.56073897,0.0003884,5]
[340058683,1728426655998,-3000.0,0.0003884,5]
[340058684,1728426656008,-3000.84907969,0.00038942,5]
[340058685,1728426656018,-5692.0,0.00039,2]
[340058686,1728426656027,-306.0,0.00039178,2]
[340058687,1728426656037,-1145.01226747,0.00039277,2]
[340058688,1728426656046,-1218.0,0.00039422,2]
[340058689,1728426656055,-1000.80922097,0.00039974,6]
[340058690,1728426656065,-306.0,0.0004,2]
[340058691,1728426656075,-215.2300771,0.00040822,2]
[340058692,1728426656084,-631.7580892,0.00040822,2]
[340058693,1728426656094,-153.0,0.00040822,2]
[340058694,1728426656103,-153.0,0.00040822,2]
[340058695,1728426656112,-2248.0,0.00040923,5]
[340058696,1728426656122,-3500.0,0.00041542,7]
[340058697,1728426656131,-150.0,0.00042102,30]
[340058698,1728426656141,-190.0,0.00042168,2]
[340058699,1728426656150,-1218.0,0.00042422,2]
[340058700,1728426656159,-636.58,0.000427,2]
[340058701,1728426656168,-2500.0,0.00043388,3]
[340058702,1728426656178,-2500.0,0.00043397,3]
[340058703,1728426656188,-2500.0,0.00043406,3]
[340058704,1728426656197,-2500.0,0.00043415,3]
[340058705,1728426656206,-2500.0,0.00043424,3]
[340058706,1728426656219,-2500.0,0.00043432,3]
[340058707,1728426656229,-2500.0,0.00043441,3]
[340058708,1728426656238,-2500.0,0.0004345,3]
[340058709,1728426656248,-2500.0,0.0004345,3]
[340058710,1728426656258,-151.0,0.0004345,120]
[340058711,1728426656268,-336.902971,0.0004345,120]
[340058712,1728426656277,-2500.0,0.00043453,3]
[340058713,1728426656287,-882.5979752,0.00043453,3]
[340058714,1728426656297,-151.2007032,0.00043795,5]
[340058715,1728426656307,-1145.01226747,0.0004413,2]
[340058716,1728426656317,-400.0,0.00044658,2]
[340058717,1728426656326,-4000.0,0.00044664,7]
[340058718,1728426656336,-220009.999999,0.00045,6]
[340058719,1728426656345,-151.0,0.00045,120]
[340058720,1728426656355,-336.902971,0.00045,120]
[340058721,1728426656365,-1218.0,0.00045422,2]
[340058722,1728426656375,-1301481.1711621,0.00046,60]
[340058723,1728426656385,-225.26,0.00046,30]
[340058724,1728426656394,-524.189191,0.00046,120]
[340058725,1728426656404,-151.0,0.00046,120]
[340058726,1728426656414,-524.189193,0.00046,120]
[340058727,1728426656424,-336.902971,0.00046,120]
[340058728,1728426656433,-151.0,0.00046,120]
[340058729,1728426656443,-336.902966,0.00046,120]
[340058730,1728426656453,-153.0,0.00046164,30]
[340058731,1728426656462,-153.0,0.00046164,30]
[340058732,1728426656473,-153.0,0.00046164,30]
[340058733,1728426656482,-153.0,0.00046164,30]
[340058734,1728426656492,-153.0,0.00046164,30]
[340058735,1728426656501,-153.0,0.00046164,30]
[340058736,1728426656510,-153.0,0.00046164,30]
[340058737,1728426656519,-153.0,0.00046164,30]
[340058738,1728426656528,-153.0,0.00046164,30]
[340058739,1728426656538,-153.0,0.00046164,30]
[340058740,1728426656547,-153.0,0.00046164,30]
[340058741,1728426656557,-166.9,0.000462,30]
[340058742,1728426656567,-2000.0,0.000465,120]
[340058743,1728426656576,-153.0,0.000466,120]
[340058744,1728426656586,-153.0,0.000466,120]
[340058745,1728426656596,-153.0,0.000466,120]
[340058746,1728426656604,-153.0,0.000466,120]
[340058747,1728426656614,-153.0,0.000466,120]
[340058748,1728426656623,-153.0,0.000466,120]
[340058749,1728426656633,-153.0,0.000466,120]
[340058750,1728426656642,-153.0,0.000466,120]
[340058751,1728426656651,-153.0,0.000466,120]
[340058752,1728426656661,-153.0,0.000466,120]
[340058753,1728426656670,-153.0,0.000466,120]
[340058754,1728426656680,-153.0,0.000466,120]
[340058755,1728426656689,-153.0,0.000466,120]
[340058756,1728426656700,-153.0,0.000466,120]
[340058757,1728426656710,-153.0,0.000466,120]
[340058758,1728426656719,-153.0,0.000466,120]
[340058759,1728426656729,-153.0,0.000466,120]
[340058760,1728426656739,-153.0,0.000466,120]
[340058761,1728426656748,-153.0,0.000466,120]
[340058762,1728426656758,-153.0,0.000466,120]
[340058763,1728426656767,-153.0,0.000466,120]
[340058764,1728426656777,-153.0,0.000466,120]
[340058765,1728426656786,-153.0,0.000466,120]
[340058766,1728426656796,-153.0,0.000466,120]
[340058767,1728426656809,-153.0,0.000466,120]
[340058768,1728426656819,-153.0,0.000466,120]
[340058769,1728426656830,-153.0,0.000466,120]
[340058770,1728426656840,-153.0,0.000466,120]
[340058771,1728426656851,-153.0,0.000466,120]
[340058772,1728426656861,-153.0,0.000466,120]
[340058773,1728426656871,-153.0,0.000466,120]
[340058774,1728426656880,-153.0,0.000466,120]
[340058775,1728426656891,-153.0,0.000466,120]
[340058776,1728426656901,-153.0,0.000466,120]
[340058777,1728426656910,-153.0,0.000466,120]
[340058778,1728426656919,-153.0,0.000466,120]
[340058779,1728426656928,-153.0,0.000466,120]
[340058780,1728426656938,-153.0,0.000466,120]
[340058781,1728426656947,-153.0,0.000466,120]
[340058782,1728426656957,-153.0,0.000466,120]
[340058783,1728426656967,-463.680029,0.0004663,120]
[340058784,1728426656978,-174.2457,0.00046674,30]
[340058785,1728426656987,-905.289281,0.00046674,30]
[340058786,1728426656997,-319.47247,0.00046674,30]
[340058787,1728426657007,-165.284878,0.00046674,30]
[340058788,1728426657017,-362.115713,0.00046674,30]
[340058789,1728426657026,-163.91018,0.00046674,30]
[340058790,1728426657036,-238.297845,0.00046674,30]
[340058791,1728426657045,-154.285321,0.00046674,30]
[340058792,1728426657055,-166.2,0.00046935,60]
[340058793,1728426657065,-2000.0,0.00047,47]
[340058794,1728426657074,-153.0,0.00047123,30]
[340058795,1728426657084,-153.0,0.00047123,30]
[340058796,1728426657094,-153.0,0.00047123,30]
[340058797,1728426657104,-153.0,0.00047123,30]
[340058798,1728426657114,-153.0,0.00047123,30]
[340058799,1728426657123,-153.0,0.00047123,30]
[340058800,1728426657133,-153.0,0.00047123,30]
[340058801,1728426657142,-153.0,0.00047123,30]
[340058802,1728426657152,-153.0,0.00047123,30]
[340058803,1728426657162,-153.0,0.00047123,30]
[340058804,1728426657249,-306.0,0.00047123,30]
[340058805,1728426657259,-174.2457,0.00047258,30]
[340058806,1728426657269,-905.289281,0.00047258,30]
[340058807,1728426657279,-319.47247,0.00047258,30]
[340058808,1728426657289,-362.115713,0.00047258,30]
[340058809,1728426657299,-238.297845,0.00047258,30]
[340058810,1728426657310,-452.682487,0.00047366,30]
[340058811,1728426657320,-218.98721,0.00047366,30]
[340058812,1728426657329,-627.739248,0.00047366,30]
[340058813,1728426657339,-168.990968,0.00047366,30]
[340058814,1728426657349,-232.697866,0.00047366,30]
[340058815,1728426657358,-182.489343,0.00047366,30]
[340058816,1728426657368,-191.161894,0.00047366,30]
[340058817,1728426657378,-158.875801,0.00047366,30]
[340058818,1728426657387,-197.293552,0.00047366,30]
[340058819,1728426657398,-163.77489,0.00047366,30]
[340058820,1728426657407,-742.179433,0.00047366,30]
[340058821,1728426657416,-168.352943,0.00047366,30]
[340058822,1728426657426,-154.885067,0.00047366,30]
[340058823,1728426657436,-1353.494239,0.00047366,30]
[340058824,1728426657446,-168.990968,0.00047366,30]
[340058825,1728426657455,-154.285321,0.00047452,30]
[340058826,1728426657464,-2000.0,0.000475,120]
[340058827,1728426657475,-174.2457,0.00047841,30]
[340058828,1728426657484,-905.289281,0.00047841,30]
[340058829,1728426657494,-319.47247,0.00047841,30]
[340058830,1728426657503,-362.115713,0.00047841,30]
[340058831,1728426657513,-238.297845,0.00047841,30]
[340058832,1728426657522,-4500.0,0.00047923,7]
[340058833,1728426657531,-452.682487,0.00047958,30]
[340058834,1728426657541,-218.98721,0.00047958,30]
[340058835,1728426657550,-627.739248,0.00047958,30]
[340058836,1728426657560,-232.697866,0.00047958,30]
[340058837,1728426657569,-191.161894,0.00047958,30]
[340058838,1728426657579,-158.875801,0.00047958,30]
[340058839,1728426657589,-742.179433,0.00047958,30]
[340058840,1728426657599,-154.885067,0.00047958,30]
[340058841,1728426657609,-1353.494239,0.00047958,30]
[340058842,1728426657618,-2000.0,0.00048,48]
[340058843,1728426657628,-100000.0,0.00048,10]
[340058844,1728426657637,-306.0,0.00048082,30]
[340058845,1728426657647,-830.6183517,0.00048219,30]
[340058846,1728426657657,-306.0,0.00048219,30]
[340058847,1728426657666,-154.285321,0.0004823,30]
[340058848,1728426657675,-594.494,0.00048422,2]
[340058849,1728426657685,-174.2457,0.00048425,30]
[340058850,1728426657695,-905.289281,0.00048425,30]
[340058851,1728426657704,-319.47247,0.00048425,30]
[340058852,1728426657714,-362.115713,0.00048425,30]
[340058853,1728426657726,-238.297845,0.00048425,30]
[340058854,1728426657743,-2000.0,0.000485,120]
[340058855,1728426657753,-452.682487,0.0004855,30]
[340058856,1728426657763,-218.98721,0.0004855,30]
[340058857,1728426657774,-627.739248,0.0004855,30]
[340058858,1728426657784,-232.697866,0.0004855,30]
[340058859,1728426657794,-191.161894,0.0004855,30]
[340058860,1728426657803,-158.875801,0.0004855,30]
[340058861,1728426657813,-742.179433,0.0004855,30]
[340058862,1728426657823,-154.885067,0.0004855,30]
[340058863,1728426657833,-1353.494239,0.0004855,30]
[340058864,1728426657844,-1145.01226747,0.00048982,2]
[340058865,1728426657854,-2000.0,0.00049,49]
[340058866,1728426657866,-7741.36280233,0.00049,2]
[340058867,1728426657875,-5308.47203707,0.00049,120]
[340058868,1728426657884,-174.2457,0.00049008,30]
[340058869,1728426657894,-905.289281,0.00049008,30]
[340058870,1728426657904,-319.47247,0.00049008,30]
[340058871,1728426657913,-362.115713,0.00049008,30]
[340058872,1728426657923,-238.297845,0.00049008,30]
[340058873,1728426657932,-154.285321,0.00049008,30]
[340058874,1728426657941,-452.682487,0.00049142,30]
[340058875,1728426657951,-218.98721,0.00049142,30]
[340058876,1728426657960,-627.739248,0.00049142,30]
[340058877,1728426657970,-232.697866,0.00049142,30]
[340058878,1728426657980,-191.161894,0.00049142,30]
[340058879,1728426657989,-158.875801,0.00049142,30]
[340058880,1728426657999,-742.179433,0.00049142,30]
[340058881,1728426658008,-154.885067,0.00049142,30]
[340058882,1728426658017,-1353.494239,0.00049142,30]
[340058883,1728426658026,-500.0,0.00049315,2]
[340058884,1728426658036,-501.53180232,0.00049315,120]
[340058885,1728426658047,-827.13,0.00049315,30]
[340058886,1728426658057,-2000.0,0.000495,120]
[340058887,1728426658067,-400.0,0.00049517,2]
[340058888,1728426658076,-452.682487,0.00049734,30]
[340058889,1728426658085,-218.98721,0.00049734,30]
[340058890,1728426658095,-627.739248,0.00049734,30]
[340058891,1728426658104,-232.697866,0.00049734,30]
[340058892,1728426658113,-191.161894,0.00049734,30]
[340058893,1728426658122,-158.875801,0.00049734,30]
[340058894,1728426658131,-742.179433,0.00049734,30]
[340058895,1728426658141,-154.885067,0.00049734,30]
[340058896,1728426658150,-1353.494239,0.00049734,30]
[340058897,1728426658161,-182.489343,0.00049734,30]
[340058898,1728426658171,-197.293552,0.00049734,30]
[340058899,1728426658181,-500.0,0.00049863,2]
[340058900,1728426658191,-306.0,0.00049863,30]
[340058901,1728426658201,-13551.59102315,0.00049999,91]
[340058902,1728426658210,-2000.0,0.0005,50]
[340058903,1728426658219,-173770.04416196,0.0005,120]
[340058904,1728426658230,-2000.0,0.0005,120]
[340058905,1728426658240,-4989.65156666,0.0005,30]
[340058906,1728426658249,-200.0,0.0005,120]
[340058907,1728426658259,-2000.53582515,0.0005,2]
[340058908,1728426658268,-2000.0,0.0005,2]
[340058909,1728426658278,-198.092,0.00050349,89]
[340058910,1728426658287,-500.0,0.0005041,2]
[340058911,1728426658296,-166.9,0.000505,30]
[340058912,1728426658306,-827.13,0.00050684,35]
[340058913,1728426658316,-166.2,0.00050775,60]
[340058914,1728426658326,-500.0,0.00050958,2]
[340058915,1728426658335,-2000.0,0.00051,51]
[340058916,1728426658345,-3000.0,0.00051,85]
[340058917,1728426658354,-3000.0,0.0005101,85]
[340058918,1728426658364,-3000.0,0.0005102,85]
[340058919,1728426658373,-3000.0,0.0005103,85]
[340058920,1728426658383,-3000.0,0.0005104,85]
[340058921,1728426658392,-3000.0,0.0005105,85]
[340058922,1728426658402,-153.85928307,0.0005105,81]
[340058923,1728426658411,-3000.0,0.0005106,85]
[340058924,1728426658421,-3000.0,0.0005107,85]
[340058925,1728426658430,-5343.36863,0.0005108,85]
[340058926,1728426658439,-885.96,0.0005123,120]
[340058927,1728426658448,-5000.0,0.00051306,7]
[340058928,1728426658457,-500.0,0.00051506,2]
[340058929,1728426658467,-463.680029,0.00051945,120]
[340058930,1728426658476,-2000.0,0.00052,52]
[340058931,1728426658486,-20000.0,0.00052,30]
[340058932,1728426658495,-225.26,0.00052,30]
[340058933,1728426658504,-500.0,0.00052,120]
[340058934,1728426658513,-500.0,0.00052054,2]
[340058935,1728426658523,-827.13,0.00052054,40]
[340058936,1728426658532,-500.0,0.00052602,2]
[340058937,1728426658542,-2000.0,0.00053,53]
[340058938,1728426658551,-500.0,0.0005315,2]
[340058939,1728426658560,-827.13,0.00053424,45]
[340058940,1728426658570,-500.0,0.00053698,2]
[340058941,1728426658579,-1145.01226747,0.00053835,2]
[340058942,1728426658588,-2000.0,0.00054,54]
[340058943,1728426658598,-797.0,0.00054,120]
[340058944,1728426658607,-500.618711,0.00054246,2]
[340058945,1728426658616,-6363.90206118,0.00054246,120]
[340058946,1728426658697,-400.0,0.00054376,2]
[340058947,1728426658708,-2000.0,0.000545,120]
[340058948,1728426658717,-2000.0,0.000545,120]
[340058949,1728426658730,-2000.0,0.000545,120]
[340058950,1728426658740,-2000.0,0.000545,120]
[340058951,1728426658751,-1967.92583644,0.00054521,24]
[340058952,1728426658762,-166.2,0.00054615,90]
[340058953,1728426658771,-500.0,0.00054794,120]
[340058954,1728426658780,-827.13,0.00054794,120]
[340058955,1728426658790,-153.0,0.00054795,120]
[340058956,1728426658802,-5500.0,0.00054805,7]
[340058957,1728426658811,-2000.0,0.00055,55]
[340058958,1728426658820,-2000.0,0.00055,120]
[340058959,1728426658829,-2000.0,0.00055,120]
[340058960,1728426658839,-1000.0,0.00055,120]
[340058961,1728426658848,-371.84661522,0.00055066,24]
[340058962,1728426658858,-1909.74,0.000551,7]
[340058963,1728426658867,-150.0,0.00055164,120]
[340058964,1728426658878,-347.15,0.0005575,120]
[340058965,1728426658887,-347.15,0.0005575,120]
[340058966,1728426658897,-347.15,0.0005575,120]
[340058967,1728426658907,-347.151,0.0005575,120]
[340058968,1728426658916,-347.15,0.0005575,120]
[340058969,1728426658925,-166.9,0.000558,30]
[340058970,1728426658933,-150.0,0.00056,120]
[340058971,1728426658943,-827.13,0.00056164,120]
[340058972,1728426658953,-2000.0,0.000565,120]
[340058973,1728426658962,-2000.0,0.000565,120]
[340058974,1728426658974,-2000.0,0.000565,120]
[340058975,1728426658984,-2000.0,0.000565,120]
[340058976,1728426658993,-500.0,0.000566,120]
[340058977,1728426659003,-2000.0,0.00057,120]
[340058978,1728426659013,-150.0,0.00057,120]
[340058979,1728426659022,-4618.61312787,0.00057,60]
[340058980,1728426659032,-908.31613843,0.00057,60]
[340058981,1728426659041,-463.680029,0.0005726,120]
[340058982,1728426659051,-827.13,0.00057534,120]
[340058983,1728426659061,-2000.0,0.00058,120]
[340058984,1728426659070,-200.0,0.00058,120]
[340058985,1728426659079,-4617.0,0.00058,60]
[340058986,1728426659089,-906.0,0.00058,60]
[340058987,1728426659098,-173.0,0.00058,120]
[340058988,1728426659108,-5401.01460975,0.0005841,7]
[340058989,1728426659117,-166.2,0.00058454,120]
[340058990,1728426659129,-1145.01226747,0.00058688,2]
[340058991,1728426659140,-827.13,0.00058904,120]
[340058992,1728426659151,-4617.0,0.00059,60]
[340058993,1728426659163,-906.0,0.00059,60]
[340058994,1728426659172,-400.0,0.00059236,2]
[340058995,1728426659182,-2000.0,0.000595,120]
[340058996,1728426659191,-2000.0,0.000595,120]
[340058997,1728426659201,-2000.0,0.000595,120]
[340058998,1728426659210,-2000.0,0.000595,120]
[340058999,1728426659219,-2000.0,0.0006,60]
[340059000,1728426659230,-15095.29277847,0.0006,120]
[340059001,1728426659239,-2000.0,0.0006,120]